fUST/lending_fUST_20250824
["ID","MTS","AMOUNT","RATE_DAILY","PERIOD"]
[381107055,1756047041059,-350.51988297,0.00027663,2]
[381107056,1756047041070,-2469.87750535,0.00027663,2]
[381107057,1756047041080,-329.29623908,0.00027669,8]
[381107058,1756047041089,-173.26275563,0.0002767,2]
[381107059,1756047041098,-623.29025101,0.0002767,2]
[381107060,1756047041107,-501.11028575,0.00027673,5]
[381107061,1756047041117,-500.0,0.00027673,5]
[381107062,1756047041128,-501.70386145,0.00027673,5]
[381107063,1756047041138,-500.0,0.00027673,5]
[381107064,1756047041147,-500.0,0.00027673,5]
[381107065,1756047041156,-139.47212224,0.00027673,5]
[381107066,1756047041167,-360.52787776,0.00027673,5]
[381107067,1756047041176,-500.0,0.00027673,5]
[381107068,1756047041187,-500.0,0.00027673,5]
[381107069,1756047041196,-235.27212224,0.00027673,5]
[381107070,1756047041207,-264.72787776,0.00027673,5]
[381107071,1756047041217,-115.98612224,0.00027673,5]
[381107072,1756047041261,-385.67189711,0.00027673,5]
[381107073,1756047041270,-618.31341547,0.00027673,5]
[381107074,1756047041279,-543.19407658,0.00027673,5]
[381107075,1756047041289,-500.59199526,0.00027673,5]
[381107076,1756047041299,-500.2436032,0.00027673,5]
[381107077,1756047041311,-500.0,0.00027673,5]
[381107078,1756047041320,-500.82483447,0.00027673,5]
[381107079,1756047041330,-500.0,0.00027673,5]
[381107080,1756047041339,-278.42054504,0.00027673,5]
[381107081,1756047041350,-221.57945496,0.00027673,5]
[381107082,1756047041359,-500.0,0.00027673,5]
[381107083,1756047041369,-1492.0838386,0.0002769,2]
[381107084,1756047041381,-715.6763441,0.0002769,2]
[381107085,1756047041392,-599.35,0.0002769,2]
[381107086,1756047041403,-496.38848634,0.0002769,2]
[381107132,1756047043435,-0.1741883,0.0002769,2]
[381107135,1756047043455,-943.0902612,0.0002769,2]
[381107403,1756047046214,-26685.94136166,0.0002769,2]
[381107404,1756047046224,-1946.54118012,0.0002769,2]
[381107406,1756047046234,-191.622,0.00027698,17]
[381107409,1756047046245,-816.02142421,0.00027699,15]
[381107412,1756047046274,-623.97857579,0.00027699,15]
[381107414,1756047046283,-13736.24193987,0.000277,2]
[381107417,1756047046294,-6585.24589597,0.000277,2]
[381107419,1756047046305,-806.64838715,0.000277,2]
[381107431,1756047046412,-2505.60000049,0.000277,2]
[381107542,1756047128906,9438.51099204,0.00027561,2]
[381107543,1756047171935,351.2493216,0.00020763,2]
[381107544,1756047171980,307.34315656,0.0002249,2]
[381107546,1756047235056,5000.0,0.00027563,2]
[381107547,1756047237430,605.13373611,0.000225,2]
[381107548,1756047251347,5000.0,0.00027563,2]
[381107549,1756047264249,35139.67754576,0.00027562,2]
[381107550,1756047344541,664.03044314,0.000199,2]
[381107551,1756047344815,664.03044285,0.00021627,2]
[381107552,1756047344972,664.03044285,0.00023353,2]
[381107553,1756047345339,664.03044285,0.00026806,6]
[381107554,1756047375625,276.313802,0.00025778,2]
[381107555,1756047376007,276.313802,0.00026044,2]
[381107556,1756047376363,189.10223427,0.00026725,2]
[381107559,1756047459426,721.63537539,0.000271,2]
[381107560,1756047470442,164.176113,0.00026738,2]
[381107561,1756047470643,164.176113,0.00026738,25]
[381107562,1756047470890,164.176113,0.00026738,49]
[381107563,1756047471084,164.176113,0.00026738,72]
[381107564,1756047471523,164.176113,0.00026738,96]
[381107565,1756047471734,164.176113,0.00026738,120]
[381107566,1756047514075,575.1362639,0.000199,2]
[381107567,1756047514219,575.1362637,0.00021627,2]
[381107568,1756047546960,700.0,0.000265,120]
[381107572,1756047653790,1000.0,0.00026514,2]
[381107573,1756047681808,572.11573575,0.000199,2]
[381107574,1756047681870,572.1157357,0.0002508,2]
[381107575,1756047682212,572.1157357,0.00021627,2]
[381107576,1756047682326,572.1157357,0.00023353,2]
[381107577,1756047682534,572.1157357,0.00026806,6]
[381107578,1756047692785,41177.96462573,0.0002699,2]
[381107579,1756047731419,1108.0,0.00025204,2]
[381107581,1756047862287,1582.6684932,0.00026522,2]
[381107582,1756047867605,476.17283157,0.000199,2]
[381107583,1756047867661,476.17283156,0.00023353,2]
[381107584,1756047867802,476.17283156,0.00021627,2]
[381107585,1756047868223,476.17283156,0.00026806,6]
[381107586,1756048021686,160.474348,0.00026506,2]
[381107587,1756048038242,412.09007186,0.000199,2]
[381107588,1756048038347,412.09007161,0.00021627,2]
[381107589,1756048038458,412.09007161,0.00023353,2]
[381107590,1756048038652,412.09007161,0.0002508,2]
[381107591,1756048038819,412.09007161,0.00026806,6]
[381107601,1756048128904,1011.42,0.00026,30]
[381107611,1756048165121,158.0,0.000271,7]
[381107612,1756048209237,159.532881,0.00013699,2]
[381107613,1756048209500,159.532881,0.00023182,2]
[381107614,1756048209989,480.0,0.000271,2]
[381107615,1756048211799,471.68140111,0.000199,2]
[381107616,1756048211928,471.68140102,0.00023353,2]
[381107617,1756048212112,471.68140102,0.00026806,6]
[381107618,1756048212780,471.68140102,0.0002508,2]
[381107619,1756048220183,2400.0,0.0003049,30]
[381107668,1756048232493,-399.51132864,0.00027462,2]
[381107670,1756048232504,-1108.56803432,0.00027462,2]
[381107672,1756048232516,-300.0,0.00027471,2]
[381107675,1756048232527,-1200.0,0.00027471,2]
[381107677,1756048232538,-156.88718747,0.00027472,2]
[381107679,1756048232552,-588.58435997,0.00027472,2]
[381107681,1756048232565,-454.52845256,0.00027472,2]
[381107683,1756048232577,-1.95115386,0.00027473,2]
[381107686,1756048232589,-3720.32945902,0.00027473,2]
[381107687,1756048232599,-300.0,0.00027541,2]
[381107690,1756048232609,-300.0,0.00027541,2]
[381107693,1756048232620,-926.57,0.00027542,3]
[381107697,1756048232629,-308.86,0.00027542,3]
[381107702,1756048232638,-154.43,0.00027542,3]
[381107706,1756048232647,-463.3,0.00027542,3]
[381107710,1756048232657,-175.11,0.00027543,10]
[381107714,1756048232667,-469.718066,0.00027546,2]
[381107718,1756048232676,-233.779,0.00027551,17]
[381107722,1756048232686,-172.69250646,0.00027551,17]
[381107726,1756048232695,-436.30317571,0.00027551,2]
[381107730,1756048232704,-216.22630738,0.00027551,2]
[381107733,1756048232714,-500.0,0.00027551,2]
[381107737,1756048232723,-6.87951928,0.00027551,2]
[381107743,1756048232738,-259.1716942,0.00027551,2]
[381107746,1756048232748,-500.0,0.00027551,2]
[381107750,1756048232758,-500.0,0.00027551,2]
[381107754,1756048232767,-528.61458115,0.00027551,2]
[381107758,1756048232776,-160.16243712,0.00027551,2]
[381107761,1756048232786,-500.0,0.00027551,2]
[381107764,1756048232795,-500.0,0.00027551,2]
[381107766,1756048232804,-500.0,0.00027551,2]
[381107768,1756048232814,-500.0,0.00027551,2]
[381107770,1756048232823,-373.36982977,0.00027551,2]
[381107772,1756048232833,-500.0,0.00027551,2]
[381107774,1756048232845,-465.56557867,0.00027551,2]
[381107775,1756048232855,-500.0,0.00027551,2]
[381107778,1756048232864,-410.75650659,0.00027551,2]
[381107780,1756048232874,-197.82684094,0.00027551,2]
[381107782,1756048232883,-500.0,0.00027551,2]
[381107783,1756048232893,-500.0,0.00027551,2]
[381107785,1756048232903,-500.0,0.00027551,2]
[381107787,1756048232913,-500.0,0.00027551,2]
[381107789,1756048232923,-500.0,0.00027551,2]
[381107791,1756048232933,-500.0,0.00027551,2]
[381107793,1756048232942,-500.0,0.00027551,2]
[381107795,1756048232951,-414.62400697,0.00027551,2]
[381108203,1756048238388,-199.0,0.00027443,10]
[381108205,1756048238398,-85.37599303,0.00027551,2]
[381108207,1756048238408,-500.0,0.00027551,2]
[381108209,1756048238418,-500.0,0.00027551,2]
[381108211,1756048238428,-500.0,0.00027551,2]
[381108213,1756048238437,-500.0,0.00027551,2]
[381108215,1756048238447,-500.0,0.00027551,2]
[381108217,1756048238457,-500.0,0.00027551,2]
[381108219,1756048238466,-500.0,0.00027551,2]
[381108221,1756048238475,-500.0,0.00027551,2]
[381108223,1756048238485,-500.0,0.00027551,2]
[381108225,1756048238494,-649.73709354,0.00027551,2]
[381108228,1756048238503,-500.0,0.00027551,2]
[381108230,1756048238513,-500.0,0.00027551,2]
[381108233,1756048238523,-500.0,0.00027551,2]
[381108235,1756048238533,-500.0,0.00027551,2]
[381108237,1756048238542,-143.55754026,0.00027551,2]
[381108240,1756048238554,-356.44245974,0.00027551,2]
[381108241,1756048238563,-500.0,0.00027551,2]
[381108243,1756048238572,-500.0,0.00027551,2]
[381108245,1756048238581,-500.0,0.00027551,2]
[381108247,1756048238591,-500.0,0.00027551,2]
[381108249,1756048238600,-190.76402929,0.00027551,2]
[381108252,1756048238620,-309.23597071,0.00027551,2]
[381108254,1756048238629,-492.18121217,0.00027551,2]
[381108256,1756048238639,-500.0,0.00027551,2]
[381108258,1756048238649,-37619.5244986,0.00027552,2]
[381108260,1756048238661,-160843.9752374,0.00027552,2]
[381108263,1756048238671,-334860.32245424,0.00027562,2]
[381108265,1756048238680,-513.02420729,0.00027573,5]
[381108266,1756048238690,-500.0,0.00027573,5]
[381108268,1756048238700,-509.96383387,0.00027573,5]
[381108270,1756048238709,-500.0,0.00027573,5]
[381108273,1756048238719,-500.0,0.00027573,5]
[381108274,1756048238728,-500.0,0.00027573,5]
[381108276,1756048238738,-395.02903444,0.00027573,5]
[381108279,1756048238747,-160.0,0.00027697,2]
[381108281,1756048238757,-480.0,0.00027698,15]
[381108283,1756048238766,-909.48600138,0.000277,2]
[381108285,1756048238776,-187.55,0.000277,7]
[381108287,1756048238786,-161.65511474,0.0002777,15]
[381108289,1756048238796,-166.98232106,0.0002777,15]
[381108291,1756048238806,-625.19,0.0002777,15]
[381108293,1756048238815,-504.31630005,0.000278,5]
[381108295,1756048238826,-625.19,0.0002787,15]
[381108297,1756048238836,-625.19,0.0002797,15]
[381108299,1756048238846,-321.89264956,0.00028,120]
[381108301,1756048238855,-625.19,0.0002807,15]
[381108303,1756048238865,-500.0,0.00028121,5]
[381108305,1756048238874,-300.0,0.00028148,20]
[381108307,1756048238884,-300.0,0.00028148,20]
[381108309,1756048238893,-300.0,0.00028148,20]
[381108311,1756048238903,-300.0,0.00028148,20]
[381108313,1756048238915,-300.0,0.00028148,20]
[381108315,1756048238924,-300.0,0.00028148,20]
[381108317,1756048238933,-300.0,0.00028148,20]
[381108319,1756048238943,-625.19,0.0002817,15]
[381108321,1756048238952,-1108.5680343,0.00028194,2]
[381108323,1756048238961,-500.0,0.00028261,2]
[381108324,1756048238971,-625.19,0.0002827,15]
[381108326,1756048238980,-625.19,0.0002837,15]
[381108328,1756048238991,-500.0,0.000284,2]
[381108330,1756048239000,-625.19,0.0002847,15]
[381108332,1756048239009,-625.19,0.0002857,15]
[381108334,1756048239018,-625.19,0.0002867,15]
[381108336,1756048239028,-625.19,0.0002877,15]
[381108338,1756048239037,-168.04672001,0.000288,7]
[381108340,1756048239047,-625.19,0.0002887,15]
[381108342,1756048239057,-1853.14,0.00028912,3]
[381108343,1756048239067,-926.56,0.00028912,3]
[381108345,1756048239077,-617.72,0.00028912,3]
[381108347,1756048239086,-308.86,0.00028912,3]
[381108349,1756048239096,-1108.5680343,0.00028926,2]
[381108351,1756048239105,-3722.28061288,0.00028932,2]
[381108353,1756048239114,-625.19,0.0002897,15]
[381108355,1756048239124,-625.19,0.0002907,15]
[381108357,1756048239133,-200.0,0.00029124,120]
[381108359,1756048239143,-625.19,0.0002917,15]
[381108361,1756048239152,-625.19,0.0002927,15]
[381108363,1756048239163,-200.0,0.00029292,120]
[381108365,1756048239174,-625.19,0.0002937,15]
[381108367,1756048239185,-625.19,0.0002947,15]
[381108369,1756048239194,-1116.72331962,0.000295,120]
[381108371,1756048239203,-187.55,0.000295,7]
[381108373,1756048239213,-151.0,0.0002957,7]
[381108374,1756048239223,-151.0,0.0002957,7]
[381108376,1756048239233,-625.19,0.0002957,15]
[381108378,1756048239244,-151.0,0.00029589,7]
[381108380,1756048239254,-151.0,0.00029589,7]
[381108382,1756048239263,-151.0,0.00029589,7]
[381108384,1756048239274,-151.0,0.00029589,7]
[381108386,1756048239283,-501.567277,0.00029589,120]
[381108389,1756048239293,-1108.5680343,0.00029658,2]
[381108390,1756048239302,-28351.9285338,0.00029663,2]
[381108392,1756048239312,-151.0,0.00029665,7]
[381108394,1756048239321,-151.0,0.00029665,7]
[381108396,1756048239330,-250.0,0.00029666,2]
[381108398,1756048239340,-625.19,0.0002967,15]
[381108400,1756048239349,-586.23121085,0.00029673,5]
[381108402,1756048239359,-500.0,0.00029673,2]
[381108404,1756048239368,-500.0,0.00029673,5]
[381108406,1756048239378,-500.0,0.00029673,5]
[381108408,1756048239388,-500.0,0.00029673,5]
[381108410,1756048239398,-1680.0,0.00029686,2]
[381108412,1756048239407,-420.0,0.00029758,2]
[381108414,1756048239418,-625.19,0.0002977,15]
[381108416,1756048239427,-500.0,0.000298,120]
[381108418,1756048239436,-1680.0,0.00029815,2]
[381108420,1756048239445,-625.19,0.0002987,15]
[381108422,1756048239455,-500.0,0.0002989,2]
[381108424,1756048239465,-625.19,0.0002997,15]
[381108426,1756048239475,-151.0,0.0002998,7]
[381108428,1756048239484,-184.004727,0.0002998,7]
[381108430,1756048239494,-151.0,0.0002998,7]
[381108432,1756048239504,-151.0,0.0002998,7]
[381108434,1756048239514,-151.0,0.0002998,7]
[381108436,1756048239524,-151.0,0.0002998,7]
[381108438,1756048239533,-194.994437,0.0002998,7]
[381108440,1756048239543,-151.0,0.0002998,7]
[381108442,1756048239553,-417.52468797,0.0003,120]
[381108444,1756048239563,-715.22334226,0.0003,120]
[381108446,1756048239572,-403.18919427,0.0003,10]
[381108448,1756048239581,-202.72230618,0.0003,120]
[381108450,1756048239591,-727.5207651,0.0003,120]
[381108452,1756048239601,-182.90401557,0.0003,120]
[381108454,1756048239610,-242.46439042,0.0003,120]
[381108455,1756048239619,-515.1216964,0.0003,120]
[381108457,1756048239628,-417.00880825,0.0003,30]
[381108459,1756048239638,-375.50290563,0.0003,120]
[381108461,1756048239648,-298.1413098,0.0003001,2]
[381108463,1756048239658,-200.0,0.00030068,120]
[381108465,1756048239668,-625.19,0.0003007,15]
[381108467,1756048239677,-855.52748264,0.0003013,15]
[381108469,1756048239687,-284.09789342,0.0003013,2]
[381108471,1756048239697,-736.25852557,0.00030136,120]
[381108473,1756048239706,-300.0,0.00030137,120]
[381108475,1756048239716,-151.0,0.00030137,7]
[381108477,1756048239726,-151.0,0.00030137,7]
[381108479,1756048239735,-151.0,0.00030137,7]
[381108481,1756048239744,-151.0,0.00030137,7]
[381108483,1756048239753,-151.0,0.00030137,7]
[381108485,1756048239762,-151.0,0.00030137,7]
[381108487,1756048239772,-191.191636,0.00030137,7]
[381108489,1756048239782,-191.191636,0.00030137,7]
[381108491,1756048239791,-191.191636,0.00030137,7]
[381108493,1756048239800,-191.191636,0.00030137,7]
[381108495,1756048239810,-151.0,0.00030137,7]
[381108497,1756048239819,-151.0,0.00030137,7]
[381108499,1756048239828,-172.351863,0.00030137,7]
[381108501,1756048239838,-172.351863,0.00030137,7]
[381108503,1756048239848,-172.351863,0.00030137,7]
[381108505,1756048239857,-172.351863,0.00030137,7]
[381108507,1756048239867,-151.897024,0.00030137,7]
[381108509,1756048239876,-151.897024,0.00030137,7]
[381108511,1756048239886,-151.0,0.00030137,7]
[381108513,1756048239895,-151.897024,0.00030137,7]
[381108515,1756048239904,-151.897024,0.00030137,7]
[381108517,1756048239914,-151.0,0.00030137,7]
[381108519,1756048239924,-151.0,0.00030137,7]
[381108522,1756048239934,-625.19,0.0003017,15]
[381108524,1756048239944,-975.3121391,0.000302,2]
[381108526,1756048239953,-211.2017087,0.000302,2]
[381108528,1756048239963,-151.0,0.00030259,7]
[381108530,1756048239973,-151.0,0.00030259,7]
[381108532,1756048239983,-151.0,0.00030259,7]
[381108533,1756048239996,-151.0,0.00030259,7]
[381108535,1756048240006,-151.0,0.00030259,7]
[381108537,1756048240019,-151.0,0.00030259,7]
[381108541,1756048240032,-151.0,0.00030259,7]
[381108545,1756048240042,-151.0,0.00030259,7]
[381108548,1756048240052,-156.309803,0.00030259,7]
[381108550,1756048240061,-151.0,0.00030259,7]
[381108554,1756048240071,-151.0,0.00030259,7]
[381108557,1756048240082,-151.0,0.00030259,7]
[381108560,1756048240091,-151.0,0.00030259,7]
[381108563,1756048240101,-151.0,0.00030259,7]
[381108566,1756048240110,-226.850946,0.00030259,7]
[381108569,1756048240119,-151.0,0.00030259,7]
[381108572,1756048240129,-151.0,0.00030259,7]
[381108575,1756048240139,-217.997536,0.00030259,7]
[381108577,1756048240148,-151.0,0.00030259,7]
[381108580,1756048240162,-540.956284,0.00030259,7]
[381108583,1756048240175,-540.956284,0.00030259,7]
[381108585,1756048240185,-540.956284,0.00030259,7]
[381108588,1756048240194,-540.956284,0.00030259,7]
[381108591,1756048240204,-151.0,0.00030259,7]
[381108594,1756048240214,-151.0,0.00030259,7]
[381108597,1756048240224,-177.111747,0.00030259,7]
[381108600,1756048240234,-160.0,0.00030259,7]
[381108603,1756048240244,-151.0,0.00030259,7]
[381108606,1756048240255,-151.0,0.00030259,7]
[381108609,1756048240264,-151.0,0.00030259,7]
[381108611,1756048240274,-151.0,0.00030259,7]
[381108614,1756048240284,-376.22310801,0.00030259,7]
[381108617,1756048240293,-844.67759735,0.00030259,7]
[381108620,1756048240303,-151.0,0.00030259,7]
[381108623,1756048240314,-151.0,0.00030259,7]
[381108626,1756048240323,-158.301029,0.00030259,7]
[381108629,1756048240333,-158.301029,0.00030259,7]
[381108632,1756048240343,-714.122275,0.00030259,7]
[381108634,1756048240352,-293.269847,0.00030259,7]
[381108638,1756048240364,-158.301029,0.00030259,7]
[381108640,1756048240374,-714.122275,0.00030259,7]
[381108643,1756048240383,-151.0,0.00030259,7]
[381108647,1756048240394,-158.301029,0.00030259,7]
[381108650,1756048240404,-714.122275,0.00030259,7]
[381108653,1756048240417,-714.122275,0.00030259,7]
[381108656,1756048240427,-151.0,0.00030259,7]
[381108658,1756048240436,-151.0,0.00030259,7]
[381108661,1756048240445,-151.0,0.0003027,7]
[381108664,1756048240455,-151.0,0.0003027,7]
[381108667,1756048240464,-153.544,0.0003027,7]
[381108670,1756048240473,-151.0,0.0003027,7]
[381108673,1756048240483,-151.0,0.0003027,7]
[381108676,1756048240493,-151.0,0.0003027,7]
[381108679,1756048240503,-151.0,0.0003027,7]
[381108682,1756048240512,-151.0,0.0003027,7]
[381108685,1756048240521,-625.19,0.0003027,15]
[381108688,1756048240531,-302.36504558,0.00030341,26]
[381108691,1756048240540,-625.19,0.0003037,15]
[381108694,1756048240549,-28351.9285338,0.00030386,2]
[381108697,1756048240559,-1108.5680343,0.0003039,2]
[381108700,1756048240568,-158.0,0.000304,30]
[381108703,1756048240577,-1517.78,0.00030425,2]
[381108706,1756048240587,-1517.78,0.00030425,2]
[381108708,1756048240596,-1517.78,0.00030425,2]
[381108710,1756048240605,-1517.78,0.00030425,2]
[381108712,1756048240614,-1517.78,0.00030425,2]
[381108714,1756048240624,-625.19,0.0003047,15]
[381108717,1756048240633,-178.290292,0.00030485,7]
[381108720,1756048240643,-151.0,0.00030485,7]
[381108723,1756048240652,-151.0,0.00030485,7]
[381108727,1756048240663,-151.0,0.00030485,7]
[381108730,1756048240673,-151.0,0.00030485,7]
[381108735,1756048240683,-196.246994,0.00030485,7]
[381108738,1756048240692,-80.0172098,0.0003049,7]
[381108744,1756048240714,-70.9827902,0.0003049,7]
[381108747,1756048240723,-151.0,0.0003049,7]
[381108750,1756048240732,-151.0,0.0003049,7]
[381108753,1756048240742,-151.0,0.0003049,7]
[381108756,1756048240751,-151.0,0.0003049,7]
[381108759,1756048240760,-151.0,0.0003049,7]
[381108762,1756048240769,-151.0,0.0003049,7]
[381108765,1756048240779,-86.98437652,0.0003049,7]
[381108768,1756048240790,-64.01562348,0.0003049,7]
[381108771,1756048240800,-151.0,0.0003049,7]
[381108774,1756048240809,-151.0,0.0003049,7]
[381108777,1756048240819,-151.0,0.0003049,7]
[381108780,1756048240828,-151.0,0.0003049,7]
[381108782,1756048240837,-248.980316,0.0003049,7]
[381108785,1756048240847,-151.0,0.0003049,7]
[381108787,1756048240856,-191.191636,0.0003049,7]
[381108789,1756048240866,-191.191636,0.0003049,7]
[381108790,1756048240875,-191.191636,0.0003049,7]
[381108791,1756048240885,-191.191636,0.0003049,7]
[381108792,1756048240894,-191.191636,0.0003049,7]
[381108793,1756048240904,-191.191636,0.0003049,7]
[381108794,1756048240915,-191.191636,0.0003049,7]
[381108795,1756048240924,-191.191636,0.0003049,7]
[381108796,1756048240933,-191.191636,0.0003049,7]
[381108797,1756048240942,-191.191636,0.0003049,7]
[381108798,1756048240951,-191.191636,0.0003049,7]
[381108799,1756048240960,-191.191636,0.0003049,7]
[381108800,1756048240971,-191.191636,0.0003049,7]
[381108801,1756048240980,-191.191636,0.0003049,7]
[381108802,1756048240990,-191.191636,0.0003049,7]
[381108803,1756048241000,-191.191627,0.0003049,7]
[381108804,1756048241009,-151.0,0.0003049,7]
[381108805,1756048241018,-151.0,0.0003049,7]
[381108806,1756048241028,-151.0,0.0003049,7]
[381108807,1756048241037,-151.0,0.0003049,7]
[381108808,1756048241047,-172.351863,0.0003049,7]
[381108809,1756048241056,-172.351863,0.0003049,7]
[381108810,1756048241066,-172.351863,0.0003049,7]
[381108811,1756048241076,-172.351863,0.0003049,7]
[381108812,1756048241085,-172.351863,0.0003049,7]
[381108813,1756048241095,-172.351863,0.0003049,7]
[381108814,1756048241104,-172.351863,0.0003049,7]
[381108827,1756048241294,-172.351863,0.0003049,7]
[381108829,1756048241304,-172.351863,0.0003049,7]
[381108831,1756048241314,-172.351863,0.0003049,7]
[381108833,1756048241324,-172.351863,0.0003049,7]
[381108835,1756048241334,-172.351863,0.0003049,7]
[381108837,1756048241343,-172.351863,0.0003049,7]
[381108839,1756048241353,-172.351863,0.0003049,7]
[381108841,1756048241362,-172.351863,0.0003049,7]
[381108843,1756048241372,-172.351863,0.0003049,7]
[381108845,1756048241382,-151.897024,0.0003049,7]
[381108847,1756048241391,-151.897024,0.0003049,7]
[381108849,1756048241400,-151.897024,0.0003049,7]
[381108851,1756048241410,-151.897024,0.0003049,7]
[381108853,1756048241419,-151.897024,0.0003049,7]
[381108855,1756048241429,-151.897024,0.0003049,7]
[381108857,1756048241438,-151.897024,0.0003049,7]
[381108859,1756048241449,-151.897024,0.0003049,7]
[381108861,1756048241459,-123.43302338,0.0003049,7]
[381108904,1756048241865,-2995.95866804,0.00027562,2]
[381108906,1756048241876,-210.868975,0.00030259,7]
[381108908,1756048241886,-27.56697662,0.0003049,7]
[381108910,1756048241895,-151.897024,0.0003049,7]
[381108912,1756048241904,-151.0,0.0003049,7]
[381108914,1756048241914,-151.897024,0.0003049,7]
[381108916,1756048241924,-151.0,0.0003049,7]
[381108918,1756048241933,-151.897024,0.0003049,7]
[381108920,1756048241942,-167.167185,0.0003049,7]
[381108922,1756048241952,-151.897024,0.0003049,7]
[381108924,1756048241962,-151.897024,0.0003049,7]
[381108926,1756048241972,-151.897024,0.0003049,7]
[381108928,1756048241981,-151.897024,0.0003049,7]
[381108930,1756048241991,-151.897022,0.0003049,7]
[381108932,1756048242000,-151.0,0.0003049,7]
[381108934,1756048242009,-151.0,0.0003049,7]
[381108936,1756048242019,-151.0,0.0003049,7]
[381108938,1756048242028,-151.0,0.0003049,7]
[381108940,1756048242038,-151.0,0.0003049,7]
[381108942,1756048242048,-151.0,0.0003049,7]
[381108944,1756048242057,-151.0,0.0003049,7]
[381108946,1756048242067,-151.0,0.0003049,7]
[381108948,1756048242076,-151.0,0.0003049,7]
[381108950,1756048242085,-151.0,0.0003049,7]
[381108952,1756048242095,-151.0,0.0003049,7]
[381108954,1756048242105,-151.0,0.0003049,7]
[381108956,1756048242115,-151.0,0.0003049,7]
[381108958,1756048242126,-151.0,0.0003049,7]
[381108960,1756048242137,-151.0,0.0003049,7]
[381108962,1756048242146,-151.0,0.0003049,7]
[381108964,1756048242156,-155.826023,0.0003049,7]
[381108966,1756048242166,-151.0,0.0003049,7]
[381108968,1756048242179,-151.0,0.0003049,7]
[381108970,1756048242188,-151.0,0.0003049,7]
[381108972,1756048242198,-151.0,0.0003049,7]
[381108974,1756048242207,-151.0,0.0003049,7]
[381108976,1756048242218,-151.0,0.0003049,7]
[381108978,1756048242227,-151.0,0.0003049,7]
[381108980,1756048242236,-280.599709,0.0003049,7]
[381108982,1756048242246,-158.301029,0.0003049,7]
[381108984,1756048242258,-158.301029,0.0003049,7]
[381108986,1756048242268,-158.301029,0.0003049,7]
[381108988,1756048242277,-158.301029,0.0003049,7]
[381108990,1756048242287,-158.301029,0.0003049,7]
[381108992,1756048242296,-714.122275,0.0003049,7]
[381108994,1756048242306,-158.301029,0.0003049,7]
[381108996,1756048242315,-714.122275,0.0003049,7]
[381108998,1756048242325,-158.301029,0.0003049,7]
[381109000,1756048242335,-714.122275,0.0003049,7]
[381109002,1756048242344,-158.301029,0.0003049,7]
[381109004,1756048242354,-714.122275,0.0003049,7]
[381109006,1756048242364,-158.301029,0.0003049,7]
[381109008,1756048242374,-714.122275,0.0003049,7]
[381109010,1756048242383,-151.0,0.0003049,7]
[381109012,1756048242392,-158.301029,0.0003049,7]
[381109014,1756048242402,-158.301029,0.0003049,7]
[381109016,1756048242412,-714.122275,0.0003049,7]
[381109018,1756048242421,-158.301029,0.0003049,7]
[381109020,1756048242431,-714.122275,0.0003049,7]
[381109022,1756048242440,-714.122275,0.0003049,7]
[381109024,1756048242449,-158.301029,0.0003049,7]
[381109026,1756048242459,-714.122275,0.0003049,7]